Cogmind - Beta 13 @@@ ROGUE MODE // 2024.04.04 @ 00:27:12 Player: Kara Result: Destroyed by Y-45 Defender with Beam Rifle Performance ------------- Evolutions (1) 500 Regions Visited (2) 400 Robots Destroyed (69) 345 Value Destroyed (1286) 1286 Prototype IDs (2) 40 Alien Tech Used (0) 0 Bonus (0) 0 TOTAL SCORE: 2571 Bonus ------- None Cogmind --------- Core Integrity 0/400 Matter 136/300 Energy 125/125 System Corruption 5% Temperature Cool (9) Movement Rolling (80) Location -9/Materials Parts ------- > --- POWER (2) -------- Light Ion Engine > --- PROPULSION (2) --- Wheel > --- UTILITY (3) ------ Targeting Computer Core Shielding > --- WEAPON (2) ------- Mini Grenade Launcher Mini Grenade Launcher > --- INVENTORY (5) ---- Medium Battery (150) Sensor Array Targeting Computer Field Laser Peak State ------------ > --- POWER ------------ Improved Ion Engine Light Deuterium Engine > --- PROPULSION ------- Flight Unit Flight Unit > --- UTILITY ---------- Signal Interpreter Core Shielding Hacking Suite > --- WEAPON ----------- Field Laser Field Laser > --- INVENTORY -------- Heavy Ion Engine Particle Gun Improved Medium Laser Mini Grenade Launcher [Rating: 19] Favorites ----------- Power Light Ion Engine Engine Light Ion Engine Propulsion Flight Unit Treads Light Treads Leg Aluminum Leg Wheel Wheel Flight Unit Flight Unit Utility Signal Interpreter Device Improved Terrain Scanner Processor Signal Interpreter Hackware Hacking Suite Protection Core Shielding Weapon Field Laser Energy Gun Field Laser Ballistic Gun Light Assault Rifle Launcher Mini Grenade Launcher Special Weapon Mining Laser Impact Weapon Hammer Special Melee Weapon Datajack Build | -11 -10 -9 ------- Run | Yrd Mat Mat Slots Evolved 2 | . . 2 Power 1 | . . 1 Propulsion . | . . . Utility 1 | . . 1 Weapon . | . . . Parts Attached 108 | 17 33 58 Power 16 | 1 3 12 Engine 16 | 1 3 12 Core . | . . . Reactor . | . . . Propulsion 30 | 7 6 17 Treads 4 | . . 4 Leg 13 | 4 1 8 Wheel 4 | 3 . 1 Hover . | . . . Flight 9 | . 5 4 Utility 23 | 2 9 12 Device 7 | 2 2 3 Storage . | . . . Processor 4 | . 2 2 Hackware 4 | . 1 3 Protection 8 | . 4 4 Artifact . | . . . Weapon 39 | 7 15 17 Energy Gun 16 | 2 4 10 Energy Cannon . | . . . Ballistic Gun 10 | 2 6 2 Ballistic Cannon . | . . . Launcher 6 | . 1 5 Special Weapon 3 | 3 . . Impact Weapon 2 | . 2 . Slashing Weapon . | . . . Piercing Weapon . | . . . Special Melee Weapon 2 | . 2 . Unidentified Prototypes 2 | . . 2 Parts Lost 24 | . 5 19 Power 6 | . 1 5 Propulsion 8 | . 2 6 Utility 6 | . 1 5 Weapon 4 | . 1 3 Highest Loss Streak 8 | . 3 8 To Critical Strikes . | . . . Average Slot Usage (%) 88 | . 95 84 Engine 14 | . 12 15 Treads 1 | . . 2 Leg 7 | . 12 4 Flight 11 | . 15 9 Device 4 | . 7 2 Processor 11 | . 9 13 Hackware 5 | . . 7 Protection 7 | . 8 7 Energy Gun 13 | . 10 15 Ballistic Gun 5 | . 11 2 Launcher 3 | . 3 3 Naked Turns . | . . . Heaviest Build 19 | 7 9 19 Greatest Support 40 | 20 20 40 Greatest Overweight (x) 4 | . 1 4 Average Overweight (x) . | . . . Largest Inventory Capacity 5 | 5 5 5 Average Capacity 5 | 5 5 5 Most Carried 5 | 5 5 5 Average Carried 3 | 3 3 3 Final Capacity 5 | 5 5 5 Final Carried 4 | 4 3 4 Class Distribution -------------------- 74% | Mutant 18% | Scavenger-Mutant 6% | Hacker-Mutant Dominant Class ---------------- Mutant | -10/Materials Mutant | -9/Materials Resources | -11 -10 -9 ----------- Run | Yrd Mat Mat Matter Collected 1577 | 358 636 583 Remotely . | . . . Salvage Created 1982 | 91 1015 876 Parts 136 | 13 60 63 Haulers Intercepted 3 | . 2 1 Recyclers Shooed 7 | . 6 1 Parts Field Recycled . | . . . Retrieved Matter . | . . . Parts Self-Destructed . | . . . Prevented . | . . . Kills | -11 -10 -9 ------- Run | Yrd Mat Mat Combat Hostiles Destroyed 36 | 1 14 21 Guns 25 | 1 7 17 AOE 11 | . 7 4 Classes Destroyed 10 | 3 6 1 Worker 6 | 1 4 1 Builder 6 | . 5 1 Tunneler 5 | 4 1 . Hauler 3 | . 2 1 Recycler 7 | . 6 1 Operator 1 | . 1 . Watcher 5 | . 2 3 Swarmer 12 | . 6 6 Grunt 18 | 1 8 9 Sentry 6 | . . 6 Best Kill Streak 7 | 1 7 6 Combat Bots Only 5 | 1 3 5 Max Kills in Single Turn 3 | 1 3 2 Gunslinging 1 | . 1 . Exploded 3 | . 3 2 Melee . | . . . Uniques/NPCs Destroyed . | . . . Combat | -11 -10 -9 -------- Run | Yrd Mat Mat Hostile Shots Fired 273 | 4 76 193 Missed 75 | 2 31 42 Damage Taken 2372 | 22 546 1804 Core 463 | . 63 400 Absorbed by Shields . | . . . Redirected to Shielding 56 | . 3 53 Core Remaining (%) 87 | 100 74 . Volleys Fired 176 | 30 78 68 Largest 2 | 2 2 2 Hottest 128 | 100 80 128 Shots Fired 318 | 49 143 126 Gun 272 | 40 120 112 Cannon . | . . . Launcher 37 | . 23 14 Special 9 | 9 . . Kinetic 104 | 20 78 6 Thermal 169 | 29 36 104 Explosive 37 | . 23 14 Electromagnetic 8 | . 6 2 Robot Hit Streak 12 | 3 10 12 Robot Miss Streak 6 | 4 4 6 Penetration Max . | . . . Secondary Targets 5 | . 1 4 Max Gunslinging Chain 1 | . 1 1 Shots Hit Robots 183 | 23 85 75 Core Hits 112 | 11 53 48 Critical Kills . | . . . Critical Parts Destroyed . | . . . Critical Strikes 3 | . . 3 Burn 3 | . . 3 Melee Attacks 9 | . 9 . Impact 5 | . 5 . Slashing . | . . . Piercing . | . . . Sneak Attacks 5 | . 5 . Combat Hostiles . | . . . Follow-up Attacks . | . . . Damage Inflicted 3539 | 255 1846 1438 Guns 1911 | 204 589 1118 Cannons . | . . . Explosions 1439 | . 1127 312 Melee 113 | . 113 . Ramming 28 | 3 17 8 Kinetic 473 | 77 365 31 Thermal 1433 | 175 197 1061 Explosive 1439 | . 1127 312 Electromagnetic 53 | . 27 26 Impact 113 | . 113 . Slashing . | . . . Piercing . | . . . Highest Corruption 5 | . . 5 Average Corruption 5 | . . 5 Corruption Purged . | . . . Corruption Blocked . | . . . Effects 34 | . . 34 Message Errors 7 | . . 7 Matter Fused 7 | . . 7 Heat Flow Errors 1 | . . 1 Energy Discharges 7 | . . 7 Data Loss (minor) 7 | . . 7 Data Loss (major) 2 | . . 2 Misfires 1 | . . 1 Alerts 2 | . . 2 Overload Shots . | . . . Overflow Damage 123 | . 97 26 Projectiles . | . . . Explosions 92 | . 66 26 Melee 31 | . 31 . Knockbacks . | . . . Impact . | . . . Kinetic . | . . . Secondary . | . . . Self-Inflicted Damage 146 | . 101 45 Shots 12 | . 10 2 Rammed 4 | . . 4 Targets Rammed 11 | 1 6 4 Kicked 7 | 1 6 . Crushed . | . . . Highest Temperature 575 | 60 54 575 Average Temperature 85 | 23 17 133 Received Heat Transfer 894 | 12 162 720 Effects 11 | . . 11 Shutdowns 4 | . . 4 Energy Bleed 3 | . . 3 Matter Decay 2 | . . 2 Short Circuit 1 | . . 1 Damage (minor) 1 | . . 1 Siege Activations . | . . . Robots Corrupted . | . . . Combat Hostiles . | . . . Parts Fried 2 | . 1 1 Impact Corruptions 2 | . 2 . Robots Melted . | . . . Combat Hostiles . | . . . Parts Melted 8 | 1 1 6 Heat Transferred 3256 | 375 450 2431 Parts Sabotaged . | . . . Parts Stolen . | . . . Parts Stripped . | . . . Power Chain Reactions . | . . . Alert | -11 -10 -9 ------- Run | Yrd Mat Mat Peak Influence 411 | 45 279 411 Initial 81 | . . 81 Average 141 | 16 165 159 Maximum Alert Level 2 | . 1 2 Low Security (%) 71 | 100 57 72 Level 1 27 | . 42 25 Level 2 . | . . 1 Level 3 . | . . . Level 4 . | . . . Level 5 . | . . . High Security . | . . . Max Security . | . . . Squads Dispatched 10 | . 3 7 Investigation 6 | . 2 4 Extermination . | . . . Reinforcement 4 | . 1 3 Assault . | . . . Garrison . | . . . Intercept . | . . . Searches Triggered . | . . . Construction Impeded 2 | . . 2 Haulers Reinforced . | . . . Active Scanning Responses . | . . . Cargo Convoy Interrupts . | . . . Stealth | -11 -10 -9 --------- Run | Yrd Mat Mat Distress Signals 2 | . . 2 Communications Jammed . | . . . Distress Signals . | . . . Times Spotted 66 | 1 23 42 Peak Tracking Total 6 | 1 4 6 Tactical Retreats 8 | . . 8 Traps | -11 -10 -9 ------- Run | Yrd Mat Mat Traps Triggered 7 | . 3 4 Indirectly . | . . . Trap Hack Attempts . | . . . Triggered . | . . . Disarmed 6 | . . 6 Reprogrammed . | . . . Reused . | . . . Traps Extracted . | . . . Installed . | . . . Triggered . | . . . Machines | -11 -10 -9 ---------- Run | Yrd Mat Mat Machines Disabled 6 | . 4 2 Max in Single Turn 2 | . 2 1 Machines Repaired . | . . . Machines Dismantled . | . . . Machines Sabotaged . | . . . Overloaded Fab Kills . | . . . Hacking | -11 -10 -9 --------- Run | Yrd Mat Mat Machines Accessed 14 | . 6 8 Terminals 11 | . 5 6 Fabricators . | . . . Repair Stations . | . . . Recycling Units 2 | . 1 1 Scanalyzers 1 | . . 1 Garrison Access . | . . . Total Hacks 63 | . 26 37 Successful 41 | . 15 26 Failed 21 | . 11 10 Catastrophic 2 | . 1 1 Database Lockouts 1 | . . 1 Manual . | . . . Terminals 54 | . 24 30 Fabricators . | . . . Repair Stations . | . . . Recycling Units 3 | . 2 1 Scanalyzers 6 | . . 6 Garrison Access . | . . . Terminal Hacks 32 | . 13 19 Record 20 | . 9 11 Robot Analysis 1 | . 1 . Emergency Access Points 2 | . . 2 Alert Level 2 | . 2 . Locate Traps 1 | . . 1 Disarm Traps 1 | . . 1 Dispatch Records 1 | . . 1 Maintenance Status 1 | . . 1 Recall Assault 1 | . . 1 Registered Components 1 | . 1 . Zone Layout 1 | . . 1 Fabricator Hacks . | . . . Repair Station Hacks . | . . . Recycling Unit Hacks 3 | . 2 1 Process 1 | . 1 . Report Inventory 2 | . 1 1 Scanalyzer 6 | . . 6 Insert Component 3 | . . 3 Analyze 3 | . . 3 Garrison Access Hacks . | . . . Unauthorized Hacks . | . . . Terminals . | . . . Fabricators . | . . . Repair Stations . | . . . Recycling Units . | . . . Scanalyzers . | . . . Garrison Access . | . . . Data Cores Recovered . | . . . Used . | . . . Hacking Detections 12 | . 5 7 Full Trace Events 8 | . 4 4 Feedback Events . | . . . Feedback Blocked . | . . . Robot Schematics Acquired . | . . . Robots Built . | . . . Authchips . | . . . Time . | . . . Total Robot Build Rating . | . . . Part Schematics Acquired 3 | . . 3 Parts Built . | . . . Authchips . | . . . Time . | . . . Total Part Build Rating . | . . . Parts Repaired . | . . . Time . | . . . Parts Recycled . | . . . Recycled Matter 139 | . 139 . Retrieved Matter . | . . . Retrieved Components . | . . . Parts Scanalyzed 3 | . . 3 Part Schematics Acquired 3 | . . 3 Parts Damaged . | . . . Bothacking | -11 -10 -9 ------------ Run | Yrd Mat Mat Used RIF Installer . | . . . Robots Hacked 2 | . 2 . Non-combat 1 | . 1 . Combat 1 | . 1 . Robot Hacks Applied 3 | . 3 . parse_system 2 | . 2 . no_distress 1 | . 1 . Relay Couplers Released . | . . . Fabnet Peak Effective % . | . . . Robots Rewired . | . . . Allies Hacked . | . . . Hacks Repelled . | . . . Allies | -11 -10 -9 -------- Run | Yrd Mat Mat Total Allies . | . . . Largest Group . | . . . Highest-Rated Group . | . . . Highest-Rated Ally . | . . . Total Orders . | . . . Ally Attacks . | . . . Total Damage . | . . . Kills . | . . . Allies Corrupted . | . . . Allies Melted . | . . . Intel | -11 -10 -9 ------- Run | Yrd Mat Mat Robot Analysis Total 1 | . 1 . Derelict Logs Recovered . | . . . Drone Launches . | . . . Drone Recoveries . | . . . Exploration | -11 -10 -9 ------------- Run | Yrd Mat Mat Turns Passed 3154 | 441 1000 1713 Spaces Moved 2369 | 260 919 1190 Core 117 | 21 5 91 Treads 105 | . . 105 Legs 667 | 236 222 209 Wheels 158 | 3 . 155 Hover . | . . . Flight 1322 | . 692 630 Fastest Speed 37 | 50 37 37 Average Speed 93 | 113 68 108 Slowest Speed 360 | 120 120 360 Overloaded Moves . | . . . Propulsion Burnouts . | . . . Robots Hopped 5 | . 2 3 Cave-ins Triggered . | . . . Exploration Rate (%) 57 | 6 99 68 Regions Visited 2 Branch Regions . Pre-discovered Areas . | . . . Known Exits Taken 1 | . 1 . Unknown Exits Taken 1 | 1 . . Scrap Searched . | . . . Spaces Dug 3 | 3 . . Terrain Destroyed 218 | 6 106 106 Melee . | . . . Projectile 6 | 6 . . AOE 212 | . 106 106 Terrain Rammed . | . . . Walls Destroyed . | . . . Machines Disabled . | . . . Actions | -11 -10 -9 --------- Run | Yrd Mat Mat Total 2965 | 338 1142 1485 Wait 158 | 16 63 79 Move 2358 | 259 914 1185 Hop 4 | . 2 2 Pick Up 95 | 13 23 59 Fast Attach . | . . . Attach 45 | 8 9 28 Detach . | . . . Swap 63 | 9 24 30 Drop 47 | 2 15 30 Fire 176 | 30 78 68 Melee 8 | . 8 . Ram 3 | . . 3 Kick 7 | 1 6 . Crush 1 | . . 1 Escape Stasis . | . . . Rewire . | . . . Trap . | . . . Miscellaneous . | . . . Route ------- -11/Scrapyard -10/Materials (discovered 4 exits: *Mat x3 / *Min) -9/Materials (discovered 3 exits: [*Min] / [*Sto x2]) History --------- Turn | Location | Event 2 | -11/Scrapyard | Met Revision 17 172 | -11/Scrapyard | Discovered new exit (range 8) 442 | -11/Scrapyard | Entered Materials 463 | -10/Materials | Build established: Mutant 644 | -10/Materials | Discovered new exit (range 5) 914 | -10/Materials | Lost 3 parts (2n1w) 1018 | -10/Materials | Discovered new exit (range 15) 1119 | -10/Materials | Discovered new exit (range 18) 1141 | -10/Materials | Identified exit to Materials 1223 | -10/Materials | Discovered exit to Materials (range 3) 1320 | -10/Materials | Identified exit to Mines 1442 | -10/Materials | Entered another Materials area 1442 | -9/Materials | Evolved 2 slots: Power x1, Utility x1 1477 | -9/Materials | Discovered new exit (range 13) 1506 | -9/Materials | Discovered new exit (range 5) 1549 | -9/Materials | Lost 3 parts (1p2n) 1899 | -9/Materials | Central database locked down 2219 | -9/Materials | Lost 8 parts (2p2n1u3w) 2222 | -9/Materials | Core integrity fell below 50% 2374 | -9/Materials | Discovered new exit (range 15) 2886 | -9/Materials | Core integrity fell below 20% 3155 | -9/Materials | Destroyed by Y-45 Defender with Beam Rifle Last Messages --------------- 03085_ An alarm sounds. 03085_ ALERT: Alarm triggered, dispatching investigation squad. 03098_ System corrupted: Substantial component data lost. 03104_ Acquired 15 matter. 03114_ Slammed into U-05 Engineer. 03114_ ALERT: Construction progress impeded, dispatching reinforcements to local area. 03115_ K-01 Serf cleans the Nuclear Reactor. 03123_ K-01 Serf cleans the Terminal. 03131_ K-01 Serf cleans the Processing Tank. 03133_ K-01 Serf cleans the Terminal. 03141_ System corrupted: Component data lost. 03146_ Lgt. Ion Engine destroyed. [Achievement: First Step to Greatness] The achievement interface (ESC then open Records) offers an effective way to explore all of your earned achievements as well as seek out new goals for future runs. Map ----- +----------------------------------------------------+ | ##????????????????????????## # / ! # | | #######??????????????????## # ###### /! # | | #????????????????### ## ##???# /! # | | """ #????????????????# #???######## | | """ #???????????????## #### ##??########? | | """ #???????????????# ! # !##??# #? | | " """ #???????????????# / !#??# ! #? | | " """ #???????????????# # !#??# """#? | | " #???????????????# # !#??# """#? | | #???????????????# # !#??# """#? | | #+#####???????????????#[ # !##???? ?? | | #??????????????????## # ###########+###? | | #???????????????????#### # #??? | | #######???????????????##### ########## #??? | | # #???????????????????# ###????????# #??? | | # #???????????????????#[#????????### ###? | | # #???????????????????# #????????# #? | | + = ########????????????# #????????# #? | | # " " # #??######????# #????????# < #? | | # "R" # #??# #???##/#######??# [ #? | | + """ # """" #??# #???# #??# #? | | #+######## """" #??# ##### """ #??###+#### | | [ #?# """" #### # # """ #??# # | | [[* #?# + + # # """ #??#""" # | | ! =######+### # + # #??#""" # | | # # #@ # ] " #??#""" # | | %+ + # # ]] T #??# # | | # #### # Y # ]]% " #??# # | | ######## ######### # #??######## | | ####### ###+######+####?????????? | | ^ ^ #?????????? | | ^^ #?????????? | | ^ """"" #########?? | | ##^ ^""""" ^ ######+#####[ *#?? | | ## """"" # #?#[[! #?? | | "## / """"" #?# #?? | | ### ""T""% ####### """"" ### ###?? | | ??# """""% #?????# """"" + #???? | | ??# ##+##########+#####??# ###### #???? | | ??# # ## = #??# """"" #????# #???? | | ??# # ## #??# """"" #????# #???? | | ??# + ## #??# """"" #????# #???? | | ??# # ## """"""" #??# ###### #???? | | ??# # ## """"""" #??#####+##### #???? | | ??# # ## """"""" #??????# #???# ####???? | | ??# ######### """"""" #?????##+##### #????? # | | ??# ######### """"""" #?????# # #??? ? | | ??# ## #???#######?????# ! # ## """ ? | | ??# ## #???????????????# # # """ # | | ??# ## #???????????????# """ """ # | +----------------------------------------------------+ Best States ------------- Heat Dissipation 38 Energy Generation 23 Energy Capacity 415 Matter Stores 300 Matter Capacity 300 Sight Range 18 Robot Scan Range 14 Terrain Scan Range 16 Terrain Scan Density 10 ECM Strength 1 Armor Coverage 150 Core Shielding 20 Evasion (%) 62 Targeting Accuracy 6 Recoil Reduction 2 Offensive Hacking 20 Item Schematics ----------------- Targeting Computer | -9/Materials | Scanalyzed Field Laser | -9/Materials | Scanalyzed Sensor Array | -9/Materials | Scanalyzed Robot Schematics ------------------ None Fabricated ------------ Nothing Alien Tech Used ----------------- None Achievements -------------- Crack Shot First Step to Greatness Hey, That's Mine! Librarian Loot Pinata One Hack Too Far Remodeling Risk Taker Storm Trooper Uninvited Guest Challenges ------------ None Game ------ Seed StorageMediumStick Manual? 0 Play Time 01:43:21 Cumulative 1.6 hours Start 2024.04.03 @ 20:53:29 End 2024.04.04 @ 00:27:12 Sessions 1 Manual Loads 0 Difficulty Rogue Special Mode None Game No. 1 Rogue 1 Adventurer 0 Explorer 0 Win Type - Total 0 Types 0/0/0/0/0/0/0/0/0 Lore% 2 Gallery% 3 Achievement% 3 Wizard Run 0 Options --------- Layout 1 ASCII 0 Keyboard 0 Movement Numpad Keybinds 0 Fullscreen 1 Font 24/Smallcaps Map View 50x35 Zoom Use 0% Tactical HUD 1 Map Filters NONE Filters NONE Steam 1 RUN: 987ed285-4adf-4890-bc54-9a6d4d835964